[Event "Early-Titled-Tuesday-Blitz-October-17-2023"]
[Site "Chess.com"]
[Date "2023.10.17"]
[Round "1"]
[White "GM_Huschenbeth"]
[Black "novocane"]
[Result "0-1"]
[WhiteElo "2587"]
[BlackElo "2380"]
[TimeControl "180+1"]
[EndTime "8:07:14 PDT"]
[Termination "novocane won by resignation"]

1. e4 {[%clk 0:03:00.9]} 1... c5 {[%clk 0:02:59.4]} 2. Nf3 {[%clk 0:03:00.2]}
2... Nc6 {[%clk 0:02:56.1]} 3. d4 {[%clk 0:02:59]} 3... cxd4 {[%clk 0:02:56.8]}
4. Nxd4 {[%clk 0:02:54.1]} 4... e5 {[%clk 0:02:55]} 5. Nb5 {[%clk 0:02:53.6]}
5... d6 {[%clk 0:02:54.8]} 6. N1c3 {[%clk 0:02:52.6]} 6... a6 {[%clk 0:02:53.6]}
7. Na3 {[%clk 0:02:52.1]} 7... b5 {[%clk 0:02:43]} 8. Nd5 {[%clk 0:02:51.5]}
8... Nge7 {[%clk 0:02:41.9]} 9. c3 {[%clk 0:02:48.1]} 9... Nxd5 {[%clk
0:02:39.3]} 10. exd5 {[%clk 0:02:49]} 10... Ne7 {[%clk 0:02:39.3]} 11. Bd3
{[%clk 0:02:38.8]} 11... g6 {[%clk 0:02:38.3]} 12. O-O {[%clk 0:02:36.5]} 12...
Bg7 {[%clk 0:02:37.4]} 13. c4 {[%clk 0:02:07]} 13... O-O {[%clk 0:02:17.7]} 14.
cxb5 {[%clk 0:02:05.1]} 14... f5 {[%clk 0:02:15.9]} 15. bxa6 {[%clk 0:01:55.7]}
15... e4 {[%clk 0:02:14.5]} 16. Bb5 {[%clk 0:01:32.1]} 16... Bxa6 {[%clk
0:02:13.8]} 17. Bxa6 {[%clk 0:01:26.9]} 17... Rxa6 {[%clk 0:02:13]} 18. Nc4
{[%clk 0:01:26.1]} 18... Qa8 {[%clk 0:02:07.3]} 19. Bf4 {[%clk 0:01:18.5]} 19...
Nxd5 {[%clk 0:01:37.6]} 20. Bxd6 {[%clk 0:01:04.8]} 20... Rd8 {[%clk 0:01:34.9]}
21. b3 {[%clk 0:01:05]} 21... Bxa1 {[%clk 0:01:26.8]} 22. Qxa1 {[%clk
0:01:00.6]} 22... Raxd6 {[%clk 0:01:20.9]} 23. Nxd6 {[%clk 0:00:58.3]} 23...
Rxd6 {[%clk 0:01:20.6]} 24. Rd1 {[%clk 0:00:57.9]} 24... Qd8 {[%clk 0:01:17.2]}
25. Qe5 {[%clk 0:00:53.2]} 25... Rd7 {[%clk 0:01:09.4]} 26. h4 {[%clk
0:00:37.2]} 26... Nc7 {[%clk 0:00:44.4]} 27. Rxd7 {[%clk 0:00:31.4]} 27... Qxd7
{[%clk 0:00:43.8]} 28. h5 {[%clk 0:00:28.2]} 28... Qd1+ {[%clk 0:00:42.3]} 29.
Kh2 {[%clk 0:00:27.1]} 29... Qxh5+ {[%clk 0:00:42.5]} 30. Kg1 {[%clk 0:00:27.8]}
30... Qd1+ {[%clk 0:00:42]} 31. Kh2 {[%clk 0:00:27.8]} 31... Qd7 {[%clk
0:00:35.2]} 32. a4 {[%clk 0:00:27.7]} 32... Nd5 {[%clk 0:00:33.9]} 33. a5 {[%clk
0:00:25.5]} 33... Qc7 {[%clk 0:00:31.5]} 34. Qxc7 {[%clk 0:00:22.7]} 34... Nxc7
{[%clk 0:00:31.4]} 35. Kg3 {[%clk 0:00:23.2]} 35... g5 {[%clk 0:00:29.4]} 36. f4
{[%clk 0:00:23]} 36... g4 {[%clk 0:00:25.9]} 37. Kf2 {[%clk 0:00:22.4]} 37...
Kf7 {[%clk 0:00:25.6]} 38. Ke3 {[%clk 0:00:23.1]} 38... Ke6 {[%clk 0:00:25.8]}
39. Kd4 {[%clk 0:00:23.7]} 39... Kd6 {[%clk 0:00:25.4]} 40. b4 {[%clk
0:00:23.5]} 40... Kc6 {[%clk 0:00:25.2]} 41. Kc4 {[%clk 0:00:23.4]} 41... Nb5
{[%clk 0:00:24.4]} 42. g3 {[%clk 0:00:18.4]} 42... h5 {[%clk 0:00:23.5]} 43. a6
{[%clk 0:00:17.9]} 43... Kb6 {[%clk 0:00:23.1]} 44. Kd5 {[%clk 0:00:17.8]} 44...
e3 {[%clk 0:00:21.1]} 45. a7 {[%clk 0:00:17.5]} 45... Nxa7 {[%clk 0:00:20.7]}
0-1

[Event "Early-Titled-Tuesday-Blitz-October-17-2023"]
[Site "Chess.com"]
[Date "2023.10.17"]
[Round "1"]
[White "carokannlover213"]
[Black "iJueles"]
[Result "1-0"]
[WhiteElo "2728"]
[BlackElo "2442"]
[TimeControl "180+1"]
[EndTime "8:07:15 PDT"]
[Termination "carokannlover213 won by resignation"]

1. e4 {[%clk 0:03:00.4]} 1... c6 {[%clk 0:02:59.9]} 2. d4 {[%clk 0:02:59.4]}
2... d5 {[%clk 0:03:00]} 3. e5 {[%clk 0:03:00.1]} 3... Bf5 {[%clk 0:02:59.9]} 4.
Nd2 {[%clk 0:03:00.5]} 4... e6 {[%clk 0:02:59.3]} 5. Nb3 {[%clk 0:03:01]} 5...
Nd7 {[%clk 0:02:57.8]} 6. Nf3 {[%clk 0:02:57.3]} 6... h6 {[%clk 0:02:55.6]} 7.
Be2 {[%clk 0:02:56.9]} 7... Ne7 {[%clk 0:02:55.5]} 8. O-O {[%clk 0:02:57.3]}
8... g5 {[%clk 0:02:55.7]} 9. a4 {[%clk 0:02:57.2]} 9... Qc7 {[%clk 0:02:53.9]}
10. Ne1 {[%clk 0:02:56.8]} 10... Bg7 {[%clk 0:02:52.7]} 11. Nd3 {[%clk
0:02:56.1]} 11... Ng6 {[%clk 0:02:47.4]} 12. Bd2 {[%clk 0:02:56.1]} 12... O-O
{[%clk 0:02:37.6]} 13. Ndc5 {[%clk 0:02:22.8]} 13... Nxc5 {[%clk 0:02:35]} 14.
Nxc5 {[%clk 0:02:23.7]} 14... Nf4 {[%clk 0:01:53.6]} 15. Bf3 {[%clk 0:02:07.4]}
15... b6 {[%clk 0:01:40.8]} 16. Nb3 {[%clk 0:02:07.7]} 16... f6 {[%clk
0:01:24.2]} 17. exf6 {[%clk 0:01:46.9]} 17... Rxf6 {[%clk 0:01:24.3]} 18. Bg4
{[%clk 0:01:40.4]} 18... Bxg4 {[%clk 0:01:11.8]} 19. Qxg4 {[%clk 0:01:41.3]}
19... Raf8 {[%clk 0:01:12.2]} 20. Rae1 {[%clk 0:01:23.7]} 20... Qf7 {[%clk
0:00:58.3]} 21. Bxf4 {[%clk 0:01:19.6]} 21... gxf4 {[%clk 0:00:59.2]} 22. Qf3
{[%clk 0:01:16.9]} 22... Rg6 {[%clk 0:00:57.6]} 23. Kh1 {[%clk 0:01:16.2]} 23...
Qf5 {[%clk 0:00:57.7]} 24. Re2 {[%clk 0:01:10]} 24... Kh7 {[%clk 0:00:53.6]} 25.
Rfe1 {[%clk 0:01:08.4]} 25... Re8 {[%clk 0:00:51.4]} 26. c3 {[%clk 0:01:02.7]}
26... h5 {[%clk 0:00:41.2]} 27. h3 {[%clk 0:00:56]} 27... Kg8 {[%clk 0:00:33.8]}
28. Nc1 {[%clk 0:00:55]} 28... Kf7 {[%clk 0:00:34.1]} 29. Nd3 {[%clk 0:00:54.7]}
29... Bf6 {[%clk 0:00:21.8]} 30. Ne5+ {[%clk 0:00:52.5]} 30... Bxe5 {[%clk
0:00:22.2]} 31. Rxe5 {[%clk 0:00:52.4]} 31... Qf6 {[%clk 0:00:20.6]} 32. Rxh5
{[%clk 0:00:50.4]} 32... Reg8 {[%clk 0:00:21.3]} 33. Rh7+ {[%clk 0:00:45.3]}
33... Ke8 {[%clk 0:00:20.6]} 34. Rg1 {[%clk 0:00:34.8]} 34... R6g7 {[%clk
0:00:19.7]} 35. Qh5+ {[%clk 0:00:34.1]} 35... Ke7 {[%clk 0:00:19.4]} 36. Rh6
{[%clk 0:00:33.5]} 36... Qf7 {[%clk 0:00:18.7]} 37. Qh4+ {[%clk 0:00:32]} 37...
Kd7 {[%clk 0:00:18.7]} 38. Rf6 {[%clk 0:00:31.3]} 38... Qe7 {[%clk 0:00:18.9]}
39. Rxf4 {[%clk 0:00:28.9]} 39... Qd6 {[%clk 0:00:19.1]} 40. Rf6 {[%clk
0:00:23]} 40... Qe7 {[%clk 0:00:18.8]} 41. Rh6 {[%clk 0:00:21.2]} 41... Qf7
{[%clk 0:00:17.9]} 42. Qf6 {[%clk 0:00:21.3]} 42... Qe8 {[%clk 0:00:16.9]} 43.
Qf3 {[%clk 0:00:19.3]} 43... Rf7 {[%clk 0:00:17.1]} 44. Qe2 {[%clk 0:00:16.9]}
44... Qf8 {[%clk 0:00:17.2]} 45. Qxe6+ {[%clk 0:00:16.6]} 1-0

[Event "Early-Titled-Tuesday-Blitz-October-17-2023"]
[Site "Chess.com"]
[Date "2023.10.17"]
[Round "1"]
[White "crazy_but_lazy"]
[Black "giomar27"]
[Result "1-0"]
[WhiteElo "2616"]
[BlackElo "2303"]
[TimeControl "180+1"]
[EndTime "8:07:16 PDT"]
[Termination "crazy_but_lazy won by resignation"]

1. e4 {[%clk 0:02:57.7]} 1... e5 {[%clk 0:02:58.3]} 2. Nf3 {[%clk 0:02:57.4]}
2... Nc6 {[%clk 0:02:58.7]} 3. Bc4 {[%clk 0:02:54.6]} 3... Nf6 {[%clk
0:02:58.4]} 4. d3 {[%clk 0:02:52.7]} 4... h6 {[%clk 0:02:58.5]} 5. c3 {[%clk
0:02:52.5]} 5... g5 {[%clk 0:02:57.5]} 6. O-O {[%clk 0:02:52.7]} 6... Bg7 {[%clk
0:02:57.2]} 7. Re1 {[%clk 0:02:52.9]} 7... g4 {[%clk 0:02:54.9]} 8. Nfd2 {[%clk
0:02:53]} 8... d5 {[%clk 0:02:54.2]} 9. Bb3 {[%clk 0:02:39.4]} 9... O-O {[%clk
0:02:47.4]} 10. Nf1 {[%clk 0:02:38]} 10... h5 {[%clk 0:02:39.1]} 11. Bg5 {[%clk
0:02:27.1]} 11... Be6 {[%clk 0:02:31.1]} 12. Ne3 {[%clk 0:02:12.4]} 12... dxe4
{[%clk 0:02:24.6]} 13. Bxe6 {[%clk 0:02:12]} 13... fxe6 {[%clk 0:02:24.9]} 14.
dxe4 {[%clk 0:02:03.6]} 14... Qxd1 {[%clk 0:02:17.4]} 15. Nxd1 {[%clk
0:02:03.3]} 15... Rad8 {[%clk 0:02:14.5]} 16. Na3 {[%clk 0:01:56.9]} 16... Rd7
{[%clk 0:01:44.3]} 17. Nc2 {[%clk 0:01:28.2]} 17... Ne7 {[%clk 0:01:38.9]} 18.
Nde3 {[%clk 0:01:23.2]} 18... Ng6 {[%clk 0:01:36]} 19. Bxf6 {[%clk 0:01:15.5]}
19... Bxf6 {[%clk 0:01:33.5]} 20. Rad1 {[%clk 0:01:15.9]} 20... Rfd8 {[%clk
0:01:31.2]} 21. Rxd7 {[%clk 0:01:11.1]} 21... Rxd7 {[%clk 0:01:32.1]} 22. Rd1
{[%clk 0:01:11.5]} 22... Rd6 {[%clk 0:01:28.4]} 23. g3 {[%clk 0:01:07]} 23...
Kf7 {[%clk 0:01:24.9]} 24. Kf1 {[%clk 0:01:02.5]} 24... Bg5 {[%clk 0:01:13.7]}
25. Ke2 {[%clk 0:00:49.5]} 25... Ke7 {[%clk 0:01:13.9]} 26. Rh1 {[%clk
0:00:42.5]} 26... b5 {[%clk 0:00:54.3]} 27. a4 {[%clk 0:00:24]} 27... a6 {[%clk
0:00:53]} 28. axb5 {[%clk 0:00:23.1]} 28... axb5 {[%clk 0:00:53.9]} 29. Ra1
{[%clk 0:00:23.3]} 29... c6 {[%clk 0:00:30.6]} 30. Ra7+ {[%clk 0:00:22.1]} 30...
Rd7 {[%clk 0:00:31.1]} 31. Ra8 {[%clk 0:00:22.8]} 31... Rd8 {[%clk 0:00:31.1]}
32. Ra6 {[%clk 0:00:21.5]} 32... Kd6 {[%clk 0:00:23.4]} 33. Nb4 {[%clk
0:00:21.7]} 33... Rc8 {[%clk 0:00:23.8]} 34. Nd3 {[%clk 0:00:22.4]} 34... Kc7
{[%clk 0:00:19.5]} 35. Ra7+ {[%clk 0:00:22.4]} 35... Kb6 {[%clk 0:00:12]} 36.
Rg7 {[%clk 0:00:23]} 36... Bxe3 {[%clk 0:00:11.6]} 37. Kxe3 {[%clk 0:00:18.4]}
37... Nf8 {[%clk 0:00:11.5]} 38. Nxe5 {[%clk 0:00:18.3]} 38... Ra8 {[%clk
0:00:10.9]} 39. Rf7 {[%clk 0:00:18.2]} 39... Kc5 {[%clk 0:00:09.7]} 40. Rxf8
{[%clk 0:00:18]} 40... Rxf8 {[%clk 0:00:09.3]} 41. Nd7+ {[%clk 0:00:18.7]} 41...
Kc4 {[%clk 0:00:10.2]} 42. Nxf8 {[%clk 0:00:19.6]} 42... Kb3 {[%clk 0:00:10.7]}
43. Nxe6 {[%clk 0:00:19.8]} 43... Kxb2 {[%clk 0:00:11.2]} 44. Nd4 {[%clk
0:00:20.4]} 44... Kxc3 {[%clk 0:00:10.5]} 45. Nxc6 {[%clk 0:00:21.1]} 45... b4
{[%clk 0:00:11.2]} 46. Nxb4 {[%clk 0:00:21.4]} 1-0

[Event "Early-Titled-Tuesday-Blitz-October-17-2023"]
[Site "Chess.com"]
[Date "2023.10.17"]
[Round "1"]
[White "FunnyDuck66"]
[Black "Hrant_ChessMood"]
[Result "0-1"]
[WhiteElo "2513"]
[BlackElo "2946"]
[TimeControl "180+1"]
[EndTime "8:07:17 PDT"]
[Termination "Hrant_ChessMood won on time"]

1. d4 {[%clk 0:03:00.9]} 1... Nf6 {[%clk 0:02:58.5]} 2. Nf3 {[%clk 0:03:00.7]}
2... b6 {[%clk 0:02:56.5]} 3. Bg5 {[%clk 0:03:00.1]} 3... Bb7 {[%clk 0:02:56.3]}
4. Nbd2 {[%clk 0:02:59.7]} 4... g6 {[%clk 0:02:51.2]} 5. c3 {[%clk 0:02:59]}
5... Bg7 {[%clk 0:02:51.2]} 6. Qc2 {[%clk 0:02:59]} 6... d5 {[%clk 0:02:38.8]}
7. e3 {[%clk 0:02:57.2]} 7... Nbd7 {[%clk 0:02:38.9]} 8. Be2 {[%clk 0:02:56.4]}
8... O-O {[%clk 0:02:37.9]} 9. O-O {[%clk 0:02:56.1]} 9... c5 {[%clk 0:02:36.6]}
10. b4 {[%clk 0:02:55.8]} 10... Qc7 {[%clk 0:02:31.1]} 11. Qb2 {[%clk
0:02:54.5]} 11... Rfe8 {[%clk 0:02:17.7]} 12. Bf4 {[%clk 0:02:50.9]} 12... Qc8
{[%clk 0:02:17.1]} 13. h3 {[%clk 0:02:47.6]} 13... Ba6 {[%clk 0:02:13.6]} 14.
Bxa6 {[%clk 0:02:41.5]} 14... Qxa6 {[%clk 0:02:13.2]} 15. a4 {[%clk 0:02:35.3]}
15... Qd3 {[%clk 0:01:59.3]} 16. Rfd1 {[%clk 0:02:25.2]} 16... Rec8 {[%clk
0:01:55.8]} 17. Rac1 {[%clk 0:01:48.7]} 17... h5 {[%clk 0:01:43.3]} 18. Ne5
{[%clk 0:01:02.7]} 18... Qf5 {[%clk 0:01:38.8]} 19. Ndf3 {[%clk 0:00:59.4]}
19... Ne4 {[%clk 0:01:13.9]} 20. bxc5 {[%clk 0:00:54.2]} 20... bxc5 {[%clk
0:01:12.9]} 21. Qb7 {[%clk 0:00:47.5]} 21... Nxe5 {[%clk 0:01:10.9]} 22. Nxe5
{[%clk 0:00:46.9]} 22... Bxe5 {[%clk 0:00:38.2]} 23. dxe5 {[%clk 0:00:41.6]}
23... g5 {[%clk 0:00:38.4]} 24. Bg3 {[%clk 0:00:25]} 24... h4 {[%clk 0:00:38]}
25. Bh2 {[%clk 0:00:16.3]} 25... Qxf2+ {[%clk 0:00:38]} 26. Kh1 {[%clk
0:00:16.8]} 26... Qxe3 {[%clk 0:00:38.9]} 27. Bg1 {[%clk 0:00:06.3]} 27... Ng3+
{[%clk 0:00:39.1]} 28. Kh2 {[%clk 0:00:06.7]} 28... Qxe5 {[%clk 0:00:40]} 29.
Re1 {[%clk 0:00:06.6]} 29... Ne4+ {[%clk 0:00:39.3]} 30. Kh1 {[%clk 0:00:06.6]}
30... e6 {[%clk 0:00:38.2]} 31. Bh2 {[%clk 0:00:06.2]} 31... Qg7 {[%clk
0:00:33.4]} 32. Rf1 {[%clk 0:00:06.4]} 32... c4 {[%clk 0:00:29.9]} 33. Rf3
{[%clk 0:00:04.9]} 33... Rf8 {[%clk 0:00:29.5]} 34. Re1 {[%clk 0:00:03.2]} 34...
f5 {[%clk 0:00:29.2]} 35. Qc6 {[%clk 0:00:02.6]} 35... Rfe8 {[%clk 0:00:27.2]}
36. Qa6 {[%clk 0:00:02.8]} 36... f4 {[%clk 0:00:25.5]} 37. Rff1 {[%clk
0:00:02.1]} 37... Qxc3 {[%clk 0:00:23.9]} 38. Rb1 {[%clk 0:00:03]} 38... Qf6
{[%clk 0:00:23.2]} 39. Rb7 {[%clk 0:00:03.4]} 39... e5 {[%clk 0:00:21.2]} 40.
Rc7 {[%clk 0:00:03.9]} 40... Qxa6 {[%clk 0:00:20.2]} 0-1

[Event "Early-Titled-Tuesday-Blitz-October-17-2023"]
[Site "Chess.com"]
[Date "2023.10.17"]
[Round "1"]
[White "Witik"]
[Black "Lion_DL"]
[Result "1-0"]
[WhiteElo "2817"]
[BlackElo "2478"]
[TimeControl "180+1"]
[EndTime "8:07:20 PDT"]
[Termination "Witik won by resignation"]

1. e4 {[%clk 0:02:59.8]} 1... c5 {[%clk 0:02:58.9]} 2. d4 {[%clk 0:02:59.9]}
2... cxd4 {[%clk 0:02:57.5]} 3. c3 {[%clk 0:03:00.5]} 3... Nf6 {[%clk
0:02:57.8]} 4. e5 {[%clk 0:02:59]} 4... Nd5 {[%clk 0:02:57.8]} 5. Nf3 {[%clk
0:02:59.2]} 5... e6 {[%clk 0:02:58.2]} 6. cxd4 {[%clk 0:02:58.9]} 6... d6 {[%clk
0:02:58.4]} 7. Bc4 {[%clk 0:02:58.3]} 7... Nb6 {[%clk 0:02:58.7]} 8. Bd3 {[%clk
0:02:55.7]} 8... Nc6 {[%clk 0:02:57.6]} 9. O-O {[%clk 0:02:54.7]} 9... Be7
{[%clk 0:02:56.9]} 10. Nc3 {[%clk 0:02:49.5]} 10... Nb4 {[%clk 0:02:48.5]} 11.
Be4 {[%clk 0:02:37.1]} 11... N4d5 {[%clk 0:02:29.5]} 12. Qd3 {[%clk 0:02:29.7]}
12... Nxc3 {[%clk 0:02:25.7]} 13. Qxc3 {[%clk 0:02:12.1]} 13... Bd7 {[%clk
0:02:13.6]} 14. Bf4 {[%clk 0:01:49.9]} 14... Rc8 {[%clk 0:02:05.5]} 15. Qd3
{[%clk 0:01:34.3]} 15... Bc6 {[%clk 0:02:03.5]} 16. Rac1 {[%clk 0:01:15.2]}
16... dxe5 {[%clk 0:01:51.7]} 17. Bxc6+ {[%clk 0:01:07.1]} 17... bxc6 {[%clk
0:01:42.4]} 18. Nxe5 {[%clk 0:01:05.9]} 18... Nd5 {[%clk 0:01:24.7]} 19. Qg3
{[%clk 0:00:51.1]} 19... Nxf4 {[%clk 0:01:20]} 20. Qxf4 {[%clk 0:00:49.8]} 20...
O-O {[%clk 0:01:13.5]} 21. Nxc6 {[%clk 0:00:49.3]} 21... Qd7 {[%clk 0:01:07.4]}
22. Ne5 {[%clk 0:00:41.7]} 22... Qb7 {[%clk 0:01:03.7]} 23. Rxc8 {[%clk
0:00:40.7]} 23... Qxc8 {[%clk 0:01:02.1]} 24. Rc1 {[%clk 0:00:41]} 24... Qb7
{[%clk 0:00:59.9]} 25. b3 {[%clk 0:00:38.1]} 25... Bf6 {[%clk 0:00:58.8]} 26.
Rc4 {[%clk 0:00:30.3]} 26... Rc8 {[%clk 0:00:55]} 27. h3 {[%clk 0:00:22.5]}
27... h6 {[%clk 0:00:54.3]} 28. Qf3 {[%clk 0:00:20.5]} 28... Rc7 {[%clk
0:00:43]} 29. Qxb7 {[%clk 0:00:14.8]} 29... Rxb7 {[%clk 0:00:43.9]} 30. Kf1
{[%clk 0:00:13.5]} 30... Kf8 {[%clk 0:00:43.6]} 31. Ke2 {[%clk 0:00:13.8]} 31...
Ke7 {[%clk 0:00:42.2]} 32. f4 {[%clk 0:00:11]} 32... Kd6 {[%clk 0:00:39]} 33.
Kd3 {[%clk 0:00:10.4]} 33... Bd8 {[%clk 0:00:28.8]} 34. Rc6+ {[%clk 0:00:08.7]}
34... Ke7 {[%clk 0:00:27.6]} 35. Ra6 {[%clk 0:00:09.1]} 35... Bb6 {[%clk
0:00:27.3]} 36. Ke4 {[%clk 0:00:08.5]} 36... Rc7 {[%clk 0:00:27.1]} 37. Nc4
{[%clk 0:00:08.8]} 37... Rc6 {[%clk 0:00:22.1]} 38. a4 {[%clk 0:00:06.7]} 38...
f5+ {[%clk 0:00:18.7]} 39. Kd3 {[%clk 0:00:06.8]} 39... Kf6 {[%clk 0:00:18]} 40.
a5 {[%clk 0:00:06.5]} 40... Bd8 {[%clk 0:00:18]} 41. Rxc6 {[%clk 0:00:06.6]} 1-0

[Event "Early-Titled-Tuesday-Blitz-October-17-2023"]
[Site "Chess.com"]
[Date "2023.10.17"]
[Round "1"]
[White "Escudito"]
[Black "Iball95"]
[Result "0-1"]
[WhiteElo "2474"]
[BlackElo "2813"]
[TimeControl "180+1"]
[EndTime "8:07:21 PDT"]
[Termination "Iball95 won by resignation"]

1. d4 {[%clk 0:03:00.9]} 1... d5 {[%clk 0:03:00]} 2. Nf3 {[%clk 0:03:01.4]} 2...
Nf6 {[%clk 0:03:00.3]} 3. c4 {[%clk 0:03:02]} 3... e6 {[%clk 0:03:00.5]} 4. Nc3
{[%clk 0:02:43.9]} 4... c5 {[%clk 0:02:59.2]} 5. cxd5 {[%clk 0:02:43.5]} 5...
exd5 {[%clk 0:03:00.1]} 6. g3 {[%clk 0:02:43.5]} 6... Nc6 {[%clk 0:03:00.4]} 7.
Bg2 {[%clk 0:02:43.9]} 7... Be7 {[%clk 0:03:00.8]} 8. O-O {[%clk 0:02:44.5]}
8... O-O {[%clk 0:03:01.6]} 9. Bg5 {[%clk 0:02:44.6]} 9... c4 {[%clk 0:02:59.8]}
10. Ne5 {[%clk 0:02:43.4]} 10... Be6 {[%clk 0:02:53.7]} 11. f4 {[%clk
0:02:34.1]} 11... Ne8 {[%clk 0:02:48.2]} 12. Bxe7 {[%clk 0:02:21.7]} 12... Nxe7
{[%clk 0:02:49.1]} 13. e4 {[%clk 0:02:15.3]} 13... dxe4 {[%clk 0:02:42.2]} 14.
Bxe4 {[%clk 0:02:12.7]} 14... Nf6 {[%clk 0:02:39.2]} 15. Bg2 {[%clk 0:01:57.5]}
15... Ned5 {[%clk 0:02:33.3]} 16. Qe2 {[%clk 0:01:23]} 16... Rc8 {[%clk
0:02:07.1]} 17. Rad1 {[%clk 0:01:08.4]} 17... Re8 {[%clk 0:02:06.9]} 18. Rfe1
{[%clk 0:01:06.2]} 18... a6 {[%clk 0:02:01.5]} 19. h3 {[%clk 0:01:03.2]} 19...
b5 {[%clk 0:02:01]} 20. Qf3 {[%clk 0:00:57.1]} 20... Qb6 {[%clk 0:01:52.5]} 21.
Kh2 {[%clk 0:00:52.8]} 21... Nxc3 {[%clk 0:01:49.1]} 22. bxc3 {[%clk 0:00:51.5]}
22... Bd5 {[%clk 0:01:49.8]} 23. Qf2 {[%clk 0:00:47.6]} 23... b4 {[%clk
0:01:43.6]} 24. g4 {[%clk 0:00:35.7]} 24... bxc3 {[%clk 0:01:32.8]} 25. g5
{[%clk 0:00:35.3]} 25... Bxg2 {[%clk 0:01:32.1]} 26. Qxg2 {[%clk 0:00:25.9]}
26... Nh5 {[%clk 0:01:30.6]} 27. Qf3 {[%clk 0:00:23.4]} 27... g6 {[%clk
0:01:22.5]} 28. Qxc3 {[%clk 0:00:17.6]} 28... Nxf4 {[%clk 0:01:11.9]} 29. Rf1
{[%clk 0:00:17.8]} 29... Nd3 {[%clk 0:01:09.9]} 30. Rxd3 {[%clk 0:00:16.3]}
30... cxd3 {[%clk 0:01:08.9]} 31. Qxd3 {[%clk 0:00:15.3]} 31... Qb2+ {[%clk
0:01:05.1]} 32. Kh1 {[%clk 0:00:14.5]} 32... Rxe5 {[%clk 0:01:02.3]} 33. dxe5
{[%clk 0:00:13.8]} 33... Qxe5 {[%clk 0:01:03.2]} 34. Qd7 {[%clk 0:00:12.6]}
34... Rf8 {[%clk 0:00:58.7]} 35. Qg4 {[%clk 0:00:10.4]} 35... Qd5+ {[%clk
0:00:58.1]} 36. Kg1 {[%clk 0:00:08.9]} 36... Qxa2 {[%clk 0:00:58.8]} 37. Rf2
{[%clk 0:00:08.9]} 37... Qb1+ {[%clk 0:00:57.6]} 38. Kg2 {[%clk 0:00:08.7]}
38... a5 {[%clk 0:00:57.6]} 39. h4 {[%clk 0:00:09.1]} 39... Qb7+ {[%clk
0:00:55.4]} 40. Kh2 {[%clk 0:00:08.9]} 40... Qc7+ {[%clk 0:00:55.9]} 41. Kg2
{[%clk 0:00:09]} 41... Qc6+ {[%clk 0:00:56.3]} 42. Kh2 {[%clk 0:00:09.1]} 42...
a4 {[%clk 0:00:54.3]} 43. h5 {[%clk 0:00:09]} 43... gxh5 {[%clk 0:00:55.2]} 44.
Qxh5 {[%clk 0:00:08.1]} 44... a3 {[%clk 0:00:56.1]} 45. Qh3 {[%clk 0:00:06.9]}
45... Qd6+ {[%clk 0:00:55.8]} 46. Kg2 {[%clk 0:00:05.9]} 46... Qd5+ {[%clk
0:00:56.5]} 47. Qf3 {[%clk 0:00:04.5]} 47... Qxf3+ {[%clk 0:00:55.5]} 48. Kxf3
{[%clk 0:00:05.4]} 48... Ra8 {[%clk 0:00:56]} 49. Ra2 {[%clk 0:00:05.6]} 49...
Kg7 {[%clk 0:00:56.5]} 50. Ke3 {[%clk 0:00:06.2]} 50... Kg6 {[%clk 0:00:57.3]}
51. Kd3 {[%clk 0:00:06.5]} 51... Kxg5 {[%clk 0:00:57.6]} 0-1

[Event "Early-Titled-Tuesday-Blitz-October-17-2023"]
[Site "Chess.com"]
[Date "2023.10.17"]
[Round "1"]
[White "Mr_ruthless"]
[Black "sokidze"]
[Result "1-0"]
[WhiteElo "2473"]
[BlackElo "2775"]
[TimeControl "180+1"]
[EndTime "8:07:21 PDT"]
[Termination "Mr_ruthless won by resignation"]

1. e4 {[%clk 0:03:00.9]} 1... c5 {[%clk 0:02:58.6]} 2. Nf3 {[%clk 0:03:00.3]}
2... Nc6 {[%clk 0:02:59.1]} 3. d4 {[%clk 0:02:59.8]} 3... cxd4 {[%clk
0:02:59.7]} 4. Nxd4 {[%clk 0:03:00.7]} 4... g6 {[%clk 0:02:59.3]} 5. Nc3 {[%clk
0:02:59.2]} 5... Bg7 {[%clk 0:02:59.3]} 6. Be3 {[%clk 0:02:59.9]} 6... Nf6
{[%clk 0:02:59.8]} 7. Be2 {[%clk 0:02:57.4]} 7... O-O {[%clk 0:02:58.9]} 8. O-O
{[%clk 0:02:57.4]} 8... d5 {[%clk 0:02:59.5]} 9. exd5 {[%clk 0:02:56.6]} 9...
Nxd5 {[%clk 0:02:57.5]} 10. Nxd5 {[%clk 0:02:56]} 10... Nxd4 {[%clk 0:02:55.4]}
11. Bxd4 {[%clk 0:02:51.5]} 11... Qxd5 {[%clk 0:02:55.8]} 12. Bxg7 {[%clk
0:02:51.9]} 12... Qxd1 {[%clk 0:02:56]} 13. Raxd1 {[%clk 0:02:46.1]} 13... Kxg7
{[%clk 0:02:56.2]} 14. Bf3 {[%clk 0:02:46.8]} 14... Be6 {[%clk 0:02:43.3]} 15.
Bd5 {[%clk 0:02:36.5]} 15... Bxd5 {[%clk 0:02:28.6]} 16. Rxd5 {[%clk 0:02:37.4]}
16... Rfd8 {[%clk 0:02:28.9]} 17. Rfd1 {[%clk 0:02:37.5]} 17... Rxd5 {[%clk
0:02:28.7]} 18. Rxd5 {[%clk 0:02:38.4]} 18... Rc8 {[%clk 0:02:28.7]} 19. c3
{[%clk 0:02:37.8]} 19... Rc7 {[%clk 0:02:28.7]} 20. Kf1 {[%clk 0:02:38]} 20...
e6 {[%clk 0:02:17]} 21. Rd8 {[%clk 0:02:36.6]} 21... h5 {[%clk 0:02:15.3]} 22.
Ke2 {[%clk 0:02:36.9]} 22... Kf6 {[%clk 0:02:14.6]} 23. Ke3 {[%clk 0:02:34.5]}
23... Ke7 {[%clk 0:02:14.2]} 24. Rd4 {[%clk 0:02:30.1]} 24... e5 {[%clk
0:02:11.7]} 25. Rd5 {[%clk 0:02:22.8]} 25... Ke6 {[%clk 0:02:08.5]} 26. Rd8
{[%clk 0:02:23.3]} 26... a6 {[%clk 0:01:53.4]} 27. h4 {[%clk 0:02:23.5]} 27...
Kf5 {[%clk 0:01:49.2]} 28. g3 {[%clk 0:02:20]} 28... Ke6 {[%clk 0:01:39.9]} 29.
Re8+ {[%clk 0:02:12.5]} 29... Kd6 {[%clk 0:01:30.1]} 30. f4 {[%clk 0:01:59.7]}
30... exf4+ {[%clk 0:01:28.1]} 31. Kxf4 {[%clk 0:02:00.6]} 31... Rc4+ {[%clk
0:01:24.3]} 32. Re4 {[%clk 0:01:57.4]} 32... Rxe4+ {[%clk 0:00:58.4]} 33. Kxe4
{[%clk 0:01:58.3]} 33... b5 {[%clk 0:00:58.3]} 34. Kd4 {[%clk 0:01:50.2]} 34...
f6 {[%clk 0:00:33]} 35. b4 {[%clk 0:01:31.6]} 35... g5 {[%clk 0:00:12.7]} 36. c4
{[%clk 0:01:31.6]} 36... bxc4 {[%clk 0:00:11.2]} 37. Kxc4 {[%clk 0:01:32.5]}
37... Ke5 {[%clk 0:00:06.6]} 38. a4 {[%clk 0:01:29.9]} 38... gxh4 {[%clk
0:00:03.4]} 39. gxh4 {[%clk 0:01:29.6]} 39... f5 {[%clk 0:00:03.7]} 40. a5
{[%clk 0:00:36.3]} 40... f4 {[%clk 0:00:02.2]} 41. b5 {[%clk 0:00:34.7]} 41...
f3 {[%clk 0:00:01.6]} 42. Kd3 {[%clk 0:00:35.2]} 42... axb5 {[%clk 0:00:01.8]}
43. a6 {[%clk 0:00:35.1]} 43... b4 {[%clk 0:00:01.8]} 44. a7 {[%clk 0:00:35.3]}
1-0